{"text_format":"3","workbook":"xlsx","n_sheets":1,"sheets":["Sheet1"],"not_rendered":{"images":1},"read":"whole","date_system":"1900"}

{"sheet":"Sheet1","index":0,"n_rows":102,"n_cols":11,"rows_kept":102,"merged":[[0,0,5,2],[0,3,4,3],[1,4,5,6],[7,0,7,1],[7,5,7,9],[8,4,8,8],[10,0,10,2],[24,0,34,0],[24,1,34,1],[24,2,34,2],[24,4,34,4],[47,2,47,4],[51,0,51,2],[51,5,51,9],[65,0,74,0],[65,1,74,1],[65,2,74,2],[65,4,74,4],[73,3,74,3]]}
[]
[]
[]
[]
[]
[{"$nulls":3},"Annexure- B-Ms Excel Pricing Matric"]
[]
["NAME OF BIDDER:",{"$nulls":3},"BID NUMBER","RFP/SASSETA/25261112/1"]
["CLOSING TIME: 11:00",{"$nulls":3},"CLOSING DATE: 03 JULY 2026"]
[]
["Design work"]
["No","Item","Outcome/phase","Specification/features","Meaure of quantity/billing","Total cost (Incl. of VAT where applicable)"]
[1,"Annual Performance Plan","Design, layout, and production","Cover pages\n1.\tA4 portrait format \n2.\tFull color throughout\t\n3.\tProvide 3 cover page concepts\n4.\tImages sourcing x15\n5.\tNo of pages: between 150 and 180 incl. cover pages\n6.\tReverts x5\n7.\tEditing and proof-reading a final copy\n8.\tFinal product: PDF & Word format (Flip pages enabled)\nNB - SASSETA to supply content","per completed design"]
[2,"Strategic Plan","Design, layout, and production","Cover pages\n1.\tA4 portrait format \n2.\tFull color throughout\t\n3.\tProvide 3 cover page concepts\n4.\tImages sourcing x15\n5.\tNo of pages: between 80 and 120 incl cover pages\n6.\tReverts x5\n7.\tEditing and proof-reading a final copy\n8.\tFinal product: PDF & Word format (Flip pages enabled)\nNB - SASSETA to supply content","per completed design"]
[3,"Annual Report","Design, layout, and production","Cover pages\n1.\tA4 portrait format \n2.\tFull color throughout\t\n3.\tProvide 3 cover page concepts\n4.\tImages sourcing x15\n5.\tNo of pages: between 150 and 180 incl cover pages\n6.\tReverts x5\n7.\tEditing and proof-reading a final copy\n8.\tFinal product: PDF & Word format (Flip pages enabled)\nNB - SASSETA to supply content","per completed design"]
[4,"Sector Skillls Plan","Design, layout, and production","Cover pages\n1.\tA4 portrait format \n2.\tFull color throughout\t\n3.\tProvide 3 cover page concepts\n4.\tImages sourcing x15\n5.\tNo of pages: between 220 and 260 incl cover pages\n6.\tReverts x5\n7.\tEditing and proof-reading a final copy\n8.\tFinal product: PDF & Word format (Flip pages enabled)\nNB - SASSETA to supply content","per completed design"]
[5,"SASSETA Handbook","Design, layout, and production","Cover pages\n1.\tA4 portrait format \n2.\tFull color throughout\t\n3.\tProvide 3 cover page concepts\n4.\tImages sourcing x15\n5.\tNo of pages: between 30 and 40 incl cover pages\n6.\tReverts x5\n7.\tEditing and proof-reading a final copy\n8.\tFinal product: PDF & Word format (Flip pages enabled)\nNB - SASSETA to supply content","per completed design"]
[6,"Employeee Induction Handbook","Design, layout, and production","Cover pages\n1.\tA4 portrait format \n2.\tFull color throughout\t\n3.\tProvide 3 cover page concepts\n4.\tImages sourcing x15\n5.\tNo of pages: between 60 and 100 incl cover pages\n6.\tReverts x5\n7.\tEditing and proof-reading a final copy\n8.\tFinal product: PDF & Word format (Flip pages enabled)\nNB - SASSETA to supply content","per completed design"]
[7,"Event Programme ","Design, layout, and production","\n1.\tA5\n2.\tFull color throughout\t\n3.\tProvide 3 cover page concepts\n4.\tImages sourcing x4\n5.\tDouble printed \n6.\tReverts x5\n7.\tEditing and proof-reading a final copy\n8.\tFinal product: PDF & Word format \nNB - SASSETA to supply content","per completed design"]
[8,"Event Invitation ","Design, layout, and production","\n1.\tA5\n2.\tFull color throughout\t\n3.\tProvide 3 cover page concepts\n4.\tImages sourcing x4\n5.\tDouble printed \n6.\tReverts x5\n7.\tEditing and proof-reading a final copy\n8.\tFinal product: PDF & Word format \nNB - SASSETA to supply content","per completed design"]
[9,"Career Guidance Booklet for Learners ","Design, layout, and production","Cover pages\n1.\tA5 portrait format \n2.\tFull color throughout\t\n3.\tProvide 3 cover page concepts\n4.\tImages sourcing x15\n5.\tNo of pages: between 20 and 30 plus cover pages\n6.\tReverts x5\n7.\tEditing and proof-reading a final copy\n8.\tFinal product: PDF & Word format (Flip pages enabled)\nNB - SASSETA to supply content","per completed design"]
[10,"Career Guidance Booklet for Educators ","Design, layout, and production","Cover pages\n1.\tA4 portrait format \n2.\tFull color throughout\t\n3.\tProvide 3 cover page concepts\n4.\tImages sourcing x15\n5.\tNo of pages: between 40 and50 plus cover pages\n6.\tReverts x5\n7.\tEditing and proof-reading a final copy\n8.\tFinal product: PDF & Word format (Flip pages enabled)\nNB - SASSETA to supply content","per completed design"]
[11,"Branded presentation folders for office use","Design, layout, and production","\n1.\tA4 portrait format \n2.\tFull color throughout\t\n3.\tProvide 3 cover page concepts\n4.\tImages sourcing x3\n5.\tSides: 4 sides\n6.\tReverts x5\n7.\tEditing and proof-reading a final copy\n8.\tFinal product: PDF & Word format (Flip pages enabled)\n","per completed design"]
[12,"Internal templates ","Design, layout, and production","\n1.\tA4 portrait format \n2.\tFull color throughout\t\n3.\tProvide 3  concepts\n4.\tReverts x3\n5.\tEditing and proof-reading a final copy\n6.\tFinal product: Editable electronic version\nNB - SASSETA to supply content","per completed design"]
[13,"Adverts ","Design, layout, and production","*Black & White, ","per completed design"]
[{"$nulls":3},"*Final product: Editable electronic version"]
[{"$nulls":3},"Size: Full page"]
[{"$nulls":3},"Size: Half page"]
[{"$nulls":3},"Size: 10x3"]
[{"$nulls":3},"Size: 12x3"]
[{"$nulls":3},"Size: 13x3"]
[{"$nulls":3},"Size: 15x3"]
[{"$nulls":3},"Size: 16x3"]
[{"$nulls":3},"Size: 20x4"]
[{"$nulls":3},"NB - SASSETA to supply content"]
[14,"Posters ","Design, layout, and production","1.\tA2 \n2.\tFull color throughout\t\n3.\tProvide 3  concepts\n4.\tImages sourcing x3\n5.\tReverts x3\n6.\tEditing and proof-reading a final copy\n8.\tFinal product: Editable electronic version\nNB - SASSETA to supply content","per completed design"]
[15,"Posters ","Design, layout, and production","1.\tA3 \n2.\tFull color throughout\t\n3.\tProvide 3 concepts\n4.\tImages sourcing x3\n5.\tReverts x3\n6.\tEditing and proof-reading a final copy\n8.\tFinal product: Editable electronic version\nNB - SASSETA to supply content","per completed design"]
[16,"Desk Pad Calendars ","Design, layout, and production","\n1.\tSize: A3\n2.\tFull color throughout\t\n3.\tProvide 3 cover concepts\n4.\tImages sourcing x15\n5.\tNo of pages: 12 sheets with 1 month printed per page\n6.\tReverts x5\nNB - SASSETA to supply content","per completed design"]
[17,"Wiro Desk Calendars ","Design, layout, and production","\n1.\tSize: 14.8 x 21 cm\n2.\tFull color throughout\t\n3.\tProvide 3 cover concepts\n4.\tImages sourcing x15\n5.\tNo of pages: 13 sheets with 1 month printed per page\n6.\tReverts x5\nNB - SASSETA to supply content","per completed design"]
[18,"Evaluation Studies ","Design, layout, and production","Cover pages\n1.\tA4 portrait format \n2.\tFull color throughout\t\n3.\tProvide 3 cover page concepts\n4.\tImages sourcing x15\n5.\tNo of pages: between 80 and 100 incl. cover pages\n6.\tReverts x5\n7.\tEditing and proof-reading a final copy\n8.\tFinal product: PDF & Word format (Flip pages enabled)\nNB - SASSETA to supply content","per completed design"]
[19,"Z-Fold Leaflet","Design, layout, and production","\n1.\tSize: 210 x 297\n2.\tFull color throughout\t\n3.\tProvide 3 concepts\n4.\tImages sourcing x8\n5.\tReverts x5\n6.\tEditing and proof-reading a final copy\n7.\tFinal product: PDF & Word format (Flip pages enabled)\nNB - SASSETA to supply content","per completed design"]
[20,"A5 Booklet","Design, layout, and production","Cover pages\n•\tA5 \n•\tFull color throughout\t\n•\tProvide 3 concepts\n•\tImages sourcing x15\n•\tNo of pages: 10\n•\tReverts x5\n•\tEditing and proof-reading a final copy\n•\tFinal product: PDF & Word format (Flip pages enabled)\n\nNB - SASSETA to supply content","per completed design"]
[21,"Editable Templates  (word templates with cover page, five (5) content pages and back cover)","Design, layout, and production","\n1.\tA4 portrait format \n2.\tFull color throughout\t\n3.\tProvide 3 concepts\n4.\tReverts x5\n5.\tEditing and proof-reading a final copy\n6.\tFinal product: PDF & Word format\nNB - SASSETA to supply content","per completed design"]
[22,"Electronic Newsletter ","Design, layout, and production","Cover pages\n1.\tA4 portrait format \n2.\tFull color throughout\t\n3.\tProvide 3 cover page concepts\n4.\tImages sourcing x15\n5.\tNo of pages: Maximum 40 pages incl. cover pages\n6.\tReverts x5\n7.\tEditing and proof-reading a final copy\n8.\tFinal product: PDF & Word format (Flip pages enabled)\nNB - SASSETA to supply content","per completed design"]
[23,"A4 half folded to A5","Design, layout, and production","Cover pages\n1.\tA4 portrait format \n2.\tFull color throughout\t\n3.\tProvide 3 concepts\n4.\tImages sourcing x15\n5.\tReverts x5\n6.\tEditing and proof-reading a final copy\n7.\tFinal product: PDF & Word format (Flip pages enabled)\n\nNB - SASSETA to supply content","per completed design"]
[24,"Fixed A6 Booklet","Design, layout, and production","Cover pages\n1.\tA6 portrait format \n2.\tFull color throughout\t\n3.\tProvide 3 cover page concepts\n4.\tImages sourcing x15\n5.\tNo of pages: Maximum 40 pages incl. cover pages\n6.\tReverts x5\n7.\tEditing and proof-reading a final copy\n8.\tFinal product: PDF & Word format (Flip pages enabled)\nNB - SASSETA to supply content","per completed design"]
[null,"TOTAL A",{"$nulls":3},{"$f":"SUM(F13:F46)","v":0}]
[25,"Contingency","This will cater for the Design and layout of items that are not included in the TOR",null,null,{"v":500000,"d":"500,000.00"}]
[]
[]
[]
["Print work",{"$nulls":4},"Total cost (Incl. of VAT where applicable)"]
["No","Item","Outcome/phase","Specification/features","Meaure of quantity/billing","Volume (1 - 50 copies)","Volume (51 - 100 copies)","Volume (101 - 150 copies)","Volume (151 - 200 copies)","Volume (>200 copies)","TOTAL"]
[1,"Annual Performance Plan","Printed book","1.\tCover pages: 300gsm matt laminated and spot varnish\n2.\tInner pages: Text printed on 135gsm and Magno gloss\n3.\tBinding: Perfect bound","print run per printed book",{"$nulls":5},{"$f":"SUM(F54:J54)","v":0}]
[2,"Strategic Plan","Printed book","1.\tCover pages: 300gsm matt laminated and spot varnish\n2.\tInner pages: Text printed on 135gsm and Magno gloss\n3.\tBinding: Perfect bound","print run per printed book",{"$nulls":5},{"$f":"SUM(F55:J55)","v":0}]
[3,"Annual Report","Printed book","1.\tCover pages: 300gsm matt laminated and spot varnish\n2.\tInner pages: Text printed on 135gsm and Magno gloss\n3.\tBinding: Perfect bound","print run per printed book",{"$nulls":5},0]
[4,"Sector Skillls Plan","Printed book","1.\tCover pages: 300gsm matt laminated and spot varnish\n2.\tInner pages: Text printed on 135gsm and Magno gloss\n3.\tBinding: Perfect bound","print run per printed book",{"$nulls":5},0]
[5,"SASSETA Handbook","Printed book","1.\tCover pages: 300gsm matt laminated and spot varnish\n2.\tInner pages: Text printed on 135gsm and Magno gloss\n3.\tBinding: Perfect bound","print run per printed book",{"$nulls":5},0]
[6,"Employeee Induction Handbook","Printed book","1.\tCover pages: 300gsm matt laminated and spot varnish\n2.\tInner pages: Text printed on 135gsm and Magno gloss\n3.\tBinding: Perfect bound","print run per printed book",{"$nulls":5},0]
[7,"Event Programme ","Printed programme","1.\t300gsm matt laminated and spot varnish\n2.\tDouble sided","print run per printed programme",{"$nulls":5},0]
[8,"Event Invitation ","Printed invitation","1.\t300gsm matt laminated and spot varnish\n","print run per printed invitation",{"$nulls":5},0]
[9,"Career Guidance Booklet for Learners ","Printed book","1.\tCover 300 gsm with mat lam single sided text Text printed on 135gsm and Magno gloss,saddle stitched \n","print run per printed booklet",{"$nulls":5},0]
[10,"Career Guidance Booklet for Educators ","Printed book","1.Cover 300 gsm with matt lam single sided Text printed on 135gsm and Magno gloss, PUR Bind \n","print run per printed booklet",{"$nulls":5},0]
[11,"Branded presentation folders for office use","Printed folder ","1.\t300gsm matt laminated and spot varnish printed single sided  ","print run per printed booklet",{"$nulls":5},0]
[12,"Internal templates ","N/A","N/A","Editable electronic versions",{"$nulls":5},0]
[13,"Adverts ",null,"Black & White, Final product: Editable electronic version","Editable electronic version",{"$nulls":5},0]
[{"$nulls":3},"Size: Full page",{"$nulls":6},0]
[{"$nulls":3},"Size: Half page",{"$nulls":6},0]
[{"$nulls":3},"Size: 10x3",{"$nulls":6},0]
[{"$nulls":3},"Size: 12x3",{"$nulls":6},0]
[{"$nulls":3},"Size: 13x3",{"$nulls":6},0]
[{"$nulls":3},"Size: 15x3",{"$nulls":6},0]
[{"$nulls":3},"Size: 16x3",{"$nulls":6},0]
[{"$nulls":3},"Size: 20x4",{"$nulls":6},0]
[{"$nulls":10},0]
[14,"Posters ","Printed posters ","1.\t300gsm matt laminated and spot varnish\n2.\tA2","print run per printed poster",{"$nulls":5},0]
[15,"Posters ","Printed posters ","1.\t300gsm matt laminated and spot varnish\n2.\tA3","print run per printed poster",{"$nulls":5},0]
[16,"Desk Pad Calendars ","Printed Calendars","1.\t80 bond with unprinted backing board.  \n2.\tGlued on top with 2 plastic corners ","print run per printed calendar",{"$nulls":5},0]
[17,"Wiro Desk Calendars ","Printed Calendars","1.\t300gsm gloss\n2.\t13 sheeets \n3.\tBinding: wiro binding on top,stand unprinted","print run per printed calendar",{"$nulls":5},0]
[18,"Evaluation Studies ","Printed book","N/A - Only electronic",{"$nulls":6},0]
[19,"Z-Fold Leaflet","Printed leaflet ","1.\tCover pages: 300gsm matt laminated and spot varnish\n","print run per printed leaflet",{"$nulls":5},0]
[20,"A5 Booklet","Printed booklet","1.\t300gsm matt laminated and spot varnish\n","print run per printed booklet",{"$nulls":5},0]
[21,"Editable Templates  (word templates with cover page, five (5) content pages and back cover)","Printed book","1.\t300gsm matt laminated and spot varnish\n","print run per printed template",{"$nulls":5},0]
[22,"Electronic Newsletter ","Printed book","1.\tPrinted on 300gsm and Magno gloss\n2.\tStapled Binding\n3.\tNo of pages: Maximum 40 pages incl. cover pages","1 Newsletter per quarter",{"$nulls":5},0]
[23,"A4 half folded to A5","Printed Leaflet ","1.\t300gsm matt laminated and spot varnish\n","print run per printed leaflet",{"$nulls":5},0]
[24,"Fixed A6 Booklet ","Printed leaflet ","1.\t300gsm matt laminated and spot varnish\n","print run per printed leaflet",{"$nulls":5},0]
[null,"TOTAL B",{"$nulls":3},{"$f":"SUM(F54:F86)","v":0},{"$f":"SUM(G54:G86)","v":0},0,0,0,0]
[25,"Contingency","This will cater for the Production of items that are not included in the TOR's",{"$nulls":6},"R500,000.00"]
[]
[]
[null,"GRAND TOTAL (A+B)",{"$nulls":8},{"$f":"K87+F47","v":0}]
[]
[]
["i. Bidders are to ensure that all items indicated on (Annexure B) are quoted for. Incomplete Annexure B will lead to disqualification. "]
["ii. The template will sum up the total."]
["iii. Bidders are requested to input their costs only and sign off."]
["iv. Bidders are requested to submit Annexure B without changing any of the details on this document. Altered Annexure B will lead to disqualification."]
["v. Bidders are required to submit this excel spreadsheet in Excel format for evaluation purposes and also a signed PDF version for audit trail purposes."]
["Note 1:  Total cost as specified in Annexure B will be considered for evaluation purposes. "]
["Note 2:  Unit price refers to unit descriptions as per Annexure B."]
["Note 3: Travel and disbursement costs will be reimbursed utilising the Department of Transport travel rates"]
["Note 4: Bidder’s prices will be escalated by CPIX annually. "]